bitfinex/quotes_SOLUSD_20230102
["timestamp","ask_amount","ask_price","bid_price","bid_amount"]
[1672665525704,204.0238,11.094,11.086,23.779]
[1672665526235,136.3338,11.094,11.086,23.779]
[1672665527395,17.0,11.093,11.086,23.779]
[1672665536643,47.0,11.093,11.086,23.779]
[1672665538750,114.7,11.093,11.086,23.779]
[1672665539799,47.0,11.093,11.086,23.779]
[1672665540636,17.0,11.093,11.086,23.779]
[1672665541357,30.0,11.091,11.086,23.779]
[1672665541567,30.0,11.091,11.084,24.3038]
[1672665541802,17.0,11.09,11.084,24.3038]
[1672665544821,97.7,11.093,11.084,24.3038]
[1672665545033,47.0,11.092,11.084,24.3038]
[1672665547252,17.0,11.092,11.084,24.3038]
[1672665548004,84.71,11.092,11.084,24.3038]
[1672665549257,17.0,11.092,11.085,30.0]
[1672665551154,204.0238,11.094,11.085,30.0]
[1672665551342,17.0,11.093,11.085,30.0]
[1672665551558,30.0,11.091,11.084,49.1296]
[1672665551977,17.0,11.09,11.084,49.1296]
[1672665556092,67.71,11.092,11.084,49.1296]
[1672665556308,17.0,11.091,11.084,49.1296]
[1672665556508,17.0,11.09,11.084,49.1296]
[1672665556837,30.0,11.092,11.084,49.1296]
[1672665557034,17.0,11.091,11.084,49.1296]
[1672665563023,17.0,11.09,11.084,49.1296]
[1672665564498,67.71,11.092,11.084,49.1296]
[1672665564689,17.0,11.091,11.084,49.1296]
[1672665565021,17.0,11.09,11.085,901.84675614]
[1672665570073,204.0238,11.094,11.085,901.84675614]
[1672665570262,136.3338,11.094,11.085,917.654064]
[1672665570473,136.3338,11.094,11.087,30.0]
[1672665570800,136.3338,11.094,11.088,901.84675614]
[1672665571419,17.0,11.093,11.088,901.84675614]
[1672665576139,136.3338,11.094,11.088,901.84675614]
[1672665577409,17.0,11.093,11.088,901.84675614]
[1672665583922,47.0,11.093,11.088,901.84675614]
[1672665584573,17.0,11.093,11.088,901.84675614]
[1672665585201,204.0238,11.094,11.088,901.84675614]
[1672665585395,136.3338,11.094,11.088,901.84675614]
[1672665586985,17.0,11.093,11.088,901.84675614]
[1672665596243,136.3338,11.094,11.088,901.84675614]
[1672665597395,17.0,11.093,11.088,901.84675614]
[1672665602570,30.0,11.091,11.088,901.84675614]
[1672665602976,17.0,11.09,11.088,901.84675614]
[1672665603202,20.0,11.089,11.088,901.84675614]
[1672665603422,104.72,11.089,11.088,901.84675614]
[1672665603734,37.0,11.089,11.088,901.84675614]
[1672665605097,37.0,11.089,11.078,67.79]
[1672665605289,30.0,11.093,11.075,114.5855]
[1672665605499,17.0,11.092,11.08,30.0]
[1672665605714,30.0,11.093,11.081,111.5003]
[1672665605933,97.7,11.093,11.082,30.0]
[1672665606146,97.7,11.093,11.083,67.76]
[1672665606763,97.7,11.093,11.083,91.4903]
[1672665606980,17.0,11.092,11.083,91.4903]
[1672665607301,17.0,11.092,11.076,30.0]
[1672665607302,30.0,11.089,11.076,30.0]
[1672665607503,67.73,11.088,11.076,30.0]
[1672665607710,17.0,11.087,11.078,15.80730786]
[1672665608249,41.2726,11.087,11.078,15.80730786]
[1672665608984,71.2726,11.087,11.077,67.8]
[1672665609302,180.1856,11.087,11.077,83.60730786]
[1672665609928,180.1856,11.087,11.078,15.80730786]
[1672665610262,30.0,11.086,11.078,15.80730786]
[1672665610467,17.0,11.085,11.078,15.80730786]
[1672665610876,17.0,11.085,11.077,67.8]
[1672665611292,17.0,11.085,11.076,24.9237]
[1672665611511,84.75,11.085,11.077,67.8]
[1672665611924,17.0,11.085,11.077,15.80730786]
[1672665612572,17.0,11.085,11.078,67.79]
[1672665612787,17.0,11.085,11.077,83.60730786]
[1672665612984,133.3563,11.086,11.077,83.60730786]
[1672665613193,17.0,11.085,11.077,83.60730786]
[1672665614152,17.0,11.085,11.077,67.8]
[1672665614569,133.3563,11.086,11.077,67.8]
[1672665614772,133.3563,11.086,11.077,83.60730786]
[1672665616679,133.3563,11.086,11.078,30.0]
[1672665616989,133.3563,11.086,11.079,67.79]
[1672665617511,17.0,11.085,11.078,67.79]
[1672665617932,17.0,11.085,11.077,67.8]
[1672665618165,40.691,11.085,11.077,67.8]
[1672665619943,40.691,11.085,11.076,92.7237]
[1672665622342,23.691,11.085,11.076,92.7237]
[1672665623911,17.0,11.084,11.076,92.7237]
[1672665624124,23.691,11.085,11.076,92.7237]
[1672665624329,23.691,11.085,11.077,30.0]
[1672665624544,23.691,11.085,11.078,67.79]
[1672665625181,23.691,11.085,11.077,67.8]
[1672665625386,23.691,11.085,11.078,30.0]
[1672665625926,23.691,11.085,11.077,67.8]
[1672665633398,17.0,11.084,11.077,67.8]
[1672665642955,23.691,11.085,11.077,67.8]
[1672665643179,23.691,11.085,11.078,30.0]
[1672665643404,23.691,11.085,11.079,67.79]
[1672665645059,67.7,11.093,11.08,65.80730786]
[1672665645277,23.0492,11.093,11.082,30.0]
[1672665645482,23.0492,11.093,11.083,84.76]
[1672665645803,23.0492,11.093,11.084,30.0]
[1672665646005,139.6842,11.093,11.084,30.0]
[1672665646203,139.6842,11.093,11.083,108.511]
[1672665647259,47.0,11.092,11.083,91.511]
[1672665647470,47.0,11.092,11.083,23.751]
[1672665647471,114.71,11.092,11.083,23.751]
[1672665656094,84.71,11.092,11.083,23.751]
[1672665658922,84.71,11.092,11.084,30.0]
[1672665659549,84.71,11.092,11.083,53.751]
[1672665659763,84.71,11.092,11.083,23.751]
[1672665663351,30.0,11.091,11.083,23.751]
[1672665663662,97.71,11.092,11.083,23.751]
[1672665663854,17.0,11.091,11.083,23.751]
[1672665667026,67.72,11.09,11.083,23.751]
[1672665667658,17.0,11.089,11.083,23.751]
[1672665670280,67.71,11.092,11.084,30.0]
[1672665670485,207.3842,11.093,11.084,30.0]
[1672665670696,139.6842,11.093,11.084,113.56730786]
[1672665672392,207.3842,11.093,11.084,113.56730786]
[1672665672922,207.3842,11.093,11.085,15.80730786]
[1672665673661,139.6842,11.093,11.085,15.80730786]
[1672665674174,207.3842,11.093,11.085,15.80730786]
[1672665674386,139.6842,11.093,11.085,15.80730786]
[1672665675979,207.3842,11.093,11.085,15.80730786]
[1672665676697,139.6842,11.093,11.085,15.80730786]
[1672665677849,139.6842,11.093,11.085,30.0]
[1672665678056,207.3842,11.093,11.085,30.0]
[1672665679014,207.3842,11.093,11.084,68.89190786]
[1672665679947,139.6842,11.093,11.085,30.0]
[1672665680485,139.6842,11.093,11.084,38.89190786]
[1672665680913,139.6842,11.093,11.085,30.0]
[1672665681542,139.6842,11.093,11.084,68.89190786]
[1672665682388,139.6842,11.093,11.085,17.0]
[1672665684172,139.6842,11.093,11.086,15.80730786]
[1672665684387,67.68,11.096,11.086,15.80730786]
[1672665684388,67.68,11.096,11.087,67.0]
[1672665684580,23.3249,11.103,11.088,67.73]
[1672665684786,67.65,11.102,11.09,30.0]
[1672665685011,67.65,11.102,11.091,61.5646]
[1672665685228,67.65,11.102,11.092,30.0]
[1672665685647,67.65,11.102,11.092,24.7779]
[1672665685843,47.0,11.101,11.092,24.7779]
[1672665686055,67.66,11.1,11.092,24.7779]
[1672665686480,17.0,11.099,11.092,24.7779]
[1672665689516,67.65,11.101,11.092,24.7779]
[1672665692057,47.0,11.1,11.092,24.7779]
[1672665692461,67.66,11.099,11.092,24.7779]
[1672665693845,17.0,11.098,11.092,24.7779]
[1672665695754,67.65,11.101,11.092,24.7779]
[1672665696069,17.0,11.1,11.092,24.7779]
[1672665696277,67.66,11.099,11.092,24.7779]
[1672665696495,17.0,11.1,11.092,24.7779]
[1672665696991,47.0,11.1,11.092,24.7779]
[1672665699200,67.66,11.099,11.092,24.7779]
[1672665699626,17.0,11.098,11.092,24.7779]
[1672665699839,30.0,11.1,11.092,24.7779]
[1672665700048,17.0,11.099,11.092,24.7779]
[1672665701316,84.66,11.099,11.092,24.7779]
[1672665701945,17.0,11.099,11.092,24.7779]
[1672665702159,67.65,11.101,11.092,24.7779]
[1672665702369,17.0,11.1,11.092,24.7779]
[1672665702580,84.66,11.1,11.092,24.7779]
[1672665702893,90.9649,11.103,11.093,15.80730786]
[1672665703080,90.9649,11.103,11.093,55.56580786]
[1672665703500,90.9649,11.103,11.094,15.80730786]
[1672665703951,23.3249,11.103,11.095,84.69]
[1672665704345,23.3249,11.103,11.095,100.49730786]
[1672665704556,23.3249,11.103,11.096,30.0]
[1672665705627,67.6,11.11,11.097,84.68]
[1672665705831,67.59,11.111,11.098,20.0]
[1672665706045,30.0,11.11,11.1,30.0]
[1672665706258,30.0,11.11,11.101,67.65]
[1672665706450,30.0,11.11,11.102,20.0]
[1672665709223,17.0,11.109,11.102,20.0]
[1672665712272,16.90491717,11.109,11.102,20.0]
[1672665713322,16.80983434,11.109,11.102,20.0]
[1672665714488,16.71475151,11.109,11.102,20.0]
[1672665714981,30.0,11.11,11.102,20.0]
[1672665716467,29.90491717,11.11,11.102,20.0]
[1672665717096,20.0,11.109,11.099,67.66]
[1672665717312,20.0,11.109,11.097,30.0]
[1672665717313,30.0,11.108,11.097,30.0]
[1672665717512,67.61,11.107,11.095,67.69]
[1672665717832,30.0,11.106,11.095,91.7022]
[1672665718024,67.63,11.105,11.095,91.7022]
[1672665718252,90.09711717,11.105,11.095,91.7022]
[1672665718463,30.0,11.104,11.095,91.7022]
[1672665718674,52.5622,11.104,11.095,91.7022]
[1672665719529,22.5622,11.104,11.095,91.7022]
[1672665721955,22.5622,11.104,11.095,107.50950786]
[1672665722775,22.5622,11.104,11.096,17.0]
[1672665723102,22.5622,11.104,11.097,67.68]
[1672665726890,22.5622,11.104,11.096,67.68]
[1672665727834,22.5622,11.104,11.097,30.0]
[1672665728147,22.5622,11.104,11.098,17.0]
[1672665728374,22.5622,11.104,11.099,67.66]
[1672665729635,67.58,11.112,11.099,67.66]
[1672665729953,24.3233,11.112,11.101,30.0]
[1672665730269,24.3233,11.112,11.103,30.0]
[1672665730689,24.3233,11.112,11.104,67.63]
[1672665731732,24.3233,11.112,11.104,30.0]
[1672665731935,24.3233,11.112,11.103,67.64]
[1672665732156,24.3233,11.112,11.102,121.7848]
[1672665734669,24.3233,11.112,11.103,30.0]
[1672665734883,24.3233,11.112,11.104,84.63]
[1672665735195,24.3233,11.112,11.105,30.0]
[1672665735405,24.3233,11.112,11.104,84.63]
[1672665736258,54.3233,11.112,11.104,67.63]
[1672665736455,17.0,11.111,11.102,91.7848]
[1672665736664,17.0,11.111,11.102,24.1348]
[1672665737086,91.9033,11.112,11.103,30.0]
[1672665737837,91.9033,11.112,11.102,54.1348]
[1672665738464,91.9033,11.112,11.104,30.0]
[1672665738791,24.3233,11.112,11.104,30.0]
[1672665738999,24.3233,11.112,11.103,17.0]
[1672665739197,91.9033,11.112,11.103,17.0]
[1672665740030,91.9033,11.112,11.102,24.1348]
[1672665740255,30.0,11.111,11.102,24.1348]
[1672665740463,30.0,11.109,11.1,16.63201]
[1672665740675,20.0,11.108,11.098,67.67]
[1672665740880,44.5529,11.108,11.096,67.68]
[1672665741075,162.6761,11.107,11.097,60.0]
[1672665741289,162.6761,11.107,11.098,67.67]
[1672665741498,162.6761,11.107,11.098,83.47730786]
[1672665741935,162.6761,11.107,11.099,17.0]
[1672665742550,162.6761,11.107,11.098,67.67]
[1672665742761,162.6761,11.107,11.097,30.0]
[1672665742994,136.0643,11.106,11.098,67.67]
[1672665743185,136.0643,11.106,11.099,30.0]
[1672665743935,136.0643,11.106,11.1,17.0]
[1672665744145,136.0643,11.106,11.099,17.0]
[1672665749276,136.0643,11.106,11.098,67.67]
[1672665750034,136.0643,11.106,11.099,17.0]
[1672665754334,136.0643,11.106,11.098,17.0]
[1672665756236,67.63,11.105,11.095,47.6476]
[1672665756422,92.0395,11.105,11.095,47.6476]
[1672665757154,211.7403,11.105,11.095,47.6476]
[1672665766431,211.7403,11.105,11.096,15.80730786]
[1672665767369,30.0,11.104,11.096,15.80730786]
[1672665767579,67.64,11.103,11.096,15.80730786]
[1672665772203,23.8911,11.104,11.097,30.0]
[1672665772520,23.8911,11.104,11.098,15.80730786]
[1672665778808,23.8911,11.104,11.099,17.0]
[1672665779248,23.8911,11.104,11.1,15.80730786]
[1672665788497,23.8911,11.104,11.096,67.68]
[1672665788902,23.8911,11.104,11.097,15.80730786]
[1672665792995,67.64,11.103,11.095,24.3205]
[1672665793205,30.0,11.102,11.095,24.3205]
[1672665793421,67.65,11.101,11.095,24.3205]
[1672665795948,67.65,11.102,11.095,24.3205]
[1672665797434,206.3005,11.103,11.095,24.3205]
[1672665797650,206.3005,11.103,11.096,15.80730786]
[1672665801006,138.6605,11.103,11.097,47.0]
[1672665801220,138.6605,11.103,11.099,30.0]
[1672665801617,138.6605,11.103,11.1,15.80730786]
[1672665802477,22.7249,11.104,11.097,67.68]
[1672665802799,22.7249,11.104,11.098,15.80730786]
[1672665804157,67.57,11.114,11.099,114.66]
[1672665804375,76.89468134,11.119,11.099,114.66]
[1672665804376,67.55,11.118,11.099,266.07085182]
[1672665804560,181.5596,11.118,11.1,146.06278833]
[1672665804765,30.0,11.117,11.101,67.65]
[1672665805003,30.0,11.115,11.102,20.0]
[1672665805197,30.0,11.113,11.102,84.54570786]
[1672665805404,67.59,11.112,11.102,84.54570786]
[1672665805619,30.0,11.111,11.102,84.54570786]
[1672665805838,67.6,11.11,11.102,84.54570786]
[1672665806033,67.6,11.11,11.103,15.80730786]
[1672665806241,67.59,11.112,11.103,15.80730786]
[1672665806454,67.59,11.112,11.103,40.05240786]
[1672665806895,67.59,11.112,11.104,15.80730786]
[1672665808879,67.58,11.113,11.105,17.0]
[1672665809200,67.58,11.113,11.105,32.80730786]
[1672665811411,67.58,11.113,11.104,22.8372]
[1672665811939,90.9967,11.113,11.104,22.8372]
[1672665813714,90.9967,11.113,11.104,38.64450786]
[1672665813924,90.9967,11.113,11.106,30.0]
[1672665814247,90.9967,11.113,11.105,47.0]
[1672665814560,90.9967,11.113,11.105,17.0]
[1672665815862,90.9967,11.113,11.104,22.8372]
[1672665818558,23.4167,11.113,11.106,30.0]
[1672665818870,23.4167,11.113,11.107,17.0]
[1672665819084,18.4167,11.113,11.107,17.0]
[1672665820448,18.4167,11.113,11.107,80.74348785]
[1672665824326,18.4167,11.113,11.107,63.74348785]
[1672665824538,18.4167,11.113,11.105,23.8746]
[1672665824967,85.9967,11.113,11.105,23.8746]
[1672665825385,18.4167,11.113,11.105,23.8746]
[1672665827069,18.4167,11.113,11.106,84.62]
[1672665827680,18.4167,11.113,11.106,17.0]
[1672665830854,18.4167,11.113,11.106,80.74348785]
[1672665837583,46.89468134,11.13,11.118,15.80730786]
[1672665837891,46.89468134,11.13,11.116,156.37291214]
[1672665837892,534.00815592,11.139,11.12,270.6]
[1672665838203,76.89468134,11.15,11.122,30.0]
[1672665838431,67.36,11.149,11.123,101.11762]
[1672665838650,67.36,11.149,11.123,180.17228428]
[1672665838963,37.10676469,11.148,11.124,111.65159571]
[1672665839272,67.37,11.147,11.125,166.16159571]
[1672665839490,67.37,11.147,11.126,20.0]
[1672665839796,67.37,11.147,11.127,131.08165]
[1672665840003,30.0,11.146,11.128,20.0]
[1672665840199,67.39,11.145,11.129,67.48]
[1672665840412,30.0,11.144,11.128,67.49]
[1672665840620,67.4,11.143,11.128,67.49]
[1672665840836,30.0,11.142,11.128,67.49]
[1672665841154,87.41,11.141,11.128,67.49]
[1672665841366,30.0,11.14,11.128,67.49]
[1672665841680,87.42,11.139,11.128,67.49]
[1672665842101,30.0,11.138,11.128,67.49]
[1672665842317,30.0,11.136,11.127,97.49]
[1672665842638,30.0,11.136,11.128,30.0]
[1672665842952,67.43,11.137,11.128,30.0]
[1672665843165,20.0,11.139,11.128,30.0]
[1672665843166,67.43,11.138,11.128,30.0]
[1672665844838,17.0,11.137,11.128,30.0]
[1672665847567,67.43,11.138,11.128,30.0]
[1672665847782,87.42,11.139,11.128,30.0]
[1672665847990,20.0,11.139,11.129,97.48]
[1672665848210,20.0,11.139,11.13,30.0]
[1672665848947,20.0,11.139,11.129,30.0]
[1672665850208,67.43,11.138,11.129,30.0]
[1672665850631,30.0,11.138,11.129,30.0]
[1672665850948,30.0,11.136,11.129,30.0]
[1672665851352,67.43,11.137,11.129,30.0]
[1672665851995,205.95468404,11.161,11.137,150.66730786]
[1672665852314,116.476,11.168,11.138,84.00527]
[1672665852527,67.25,11.167,11.139,53.57378]
[1672665852718,30.0,11.166,11.14,113.99229]
[1672665852930,30.0,11.164,11.142,30.0]
[1672665853139,30.0,11.164,11.143,84.4]
[1672665853140,67.28,11.163,11.143,84.4]
[1672665853355,30.0,11.162,11.144,30.0]
[1672665853587,30.0,11.159,11.145,67.39]
[1672665853779,67.31,11.158,11.145,67.39]
[1672665854000,67.31,11.158,11.143,67.4]
[1672665854001,30.0,11.157,11.143,67.4]
[1672665854217,67.32,11.156,11.143,30.0]
[1672665854518,67.31,11.158,11.144,67.39]
[1672665854722,67.31,11.158,11.145,30.0]
[1672665855348,67.31,11.158,11.145,45.80730786]
[1672665855558,67.31,11.158,11.144,67.39]
[1672665855768,30.0,11.157,11.143,67.4]
[1672665855978,30.0,11.157,11.142,15.80730786]
[1672665855979,30.0,11.155,11.142,15.80730786]
[1672665856300,87.33,11.154,11.141,30.0]
[1672665856508,17.0,11.153,11.141,30.0]
[1672665856840,87.34,11.152,11.139,67.42]
[1672665857162,30.0,11.151,11.139,67.42]
[1672665857353,87.36,11.15,11.139,67.42]
[1672665857573,30.0,11.149,11.132,67.47]
[1672665857767,20.0,11.148,11.134,30.0]
[1672665857979,87.37,11.148,11.136,30.0]
[1672665858201,87.37,11.148,11.137,67.43]
[1672665858610,87.37,11.148,11.138,30.0]
[1672665858821,20.0,11.148,11.138,30.0]
[1672665859031,20.0,11.148,11.139,67.42]
[1672665859243,20.0,11.148,11.138,30.0]
[1672665860627,20.0,11.148,11.137,67.43]
[1672665860841,20.0,11.148,11.138,30.0]
[1672665862392,20.0,11.148,11.139,67.42]
[1672665862598,20.0,11.148,11.14,30.0]
[1672665863775,20.0,11.148,11.139,67.42]
[1672665863988,87.36,11.149,11.138,30.0]
[1672665864407,47.0,11.148,11.137,67.43]
[1672665865974,87.36,11.149,11.138,30.0]
[1672665866185,20.0,11.149,11.139,67.42]
[1672665866396,20.0,11.149,11.14,30.0]
[1672665866811,20.0,11.149,11.139,67.42]
[1672665867022,87.36,11.149,11.139,67.42]
[1672665867767,17.0,11.148,11.139,67.42]
[1672665869027,17.0,11.148,11.139,30.0]
[1672665869236,17.0,11.148,11.138,67.43]
[1672665869439,17.0,11.148,11.139,30.0]
[1672665869654,17.0,11.148,11.139,45.80730786]
[1672665869865,20.0,11.149,11.141,30.0]
[1672665870294,20.0,11.149,11.141,15.80730786]
[1672665870502,20.0,11.149,11.14,67.42]
[1672665870918,20.0,11.149,11.138,67.43]
[1672665871123,20.0,11.149,11.139,30.0]
[1672665871349,20.0,11.149,11.14,67.42]
[1672665872944,20.0,11.149,11.138,30.0]
[1672665873273,30.0,11.147,11.137,67.43]
[1672665873584,30.0,11.147,11.135,67.45]
[1672665873585,67.38,11.146,11.135,67.45]
[1672665873795,67.38,11.146,11.136,30.0]
[1672665874318,30.0,11.145,11.136,30.0]
[1672665875881,30.0,11.145,11.133,67.46]
[1672665876818,30.0,11.145,11.134,30.0]
[1672665877029,30.0,11.145,11.136,30.0]
[1672665877263,181.3657,11.146,11.135,67.45]
[1672665877671,181.3657,11.146,11.136,30.0]
[1672665878292,113.9857,11.146,11.136,30.0]
[1672665878520,113.9857,11.146,11.137,83.23730786]
[1672665881041,17.0,11.145,11.137,83.23730786]
[1672665881988,17.0,11.145,11.137,15.80730786]
[1672665884185,47.0,11.145,11.137,15.80730786]
[1672665884501,47.0,11.145,11.135,67.45]
[1672665884712,17.0,11.145,11.136,30.0]
[1672665884923,17.0,11.145,11.137,30.0]
[1672665885137,17.0,11.145,11.136,45.80730786]
[1672665886709,17.0,11.145,11.137,15.80730786]
[1672665886922,17.0,11.145,11.138,67.43]
[1672665887246,17.0,11.145,11.137,15.80730786]
[1672665887247,17.0,11.145,11.137,83.24730786]
[1672665889857,17.0,11.145,11.136,30.0]
[1672665889858,47.0,11.145,11.136,30.0]
[1672665890067,84.39,11.145,11.136,30.0]
[1672665890288,17.0,11.145,11.136,30.0]
[1672665890909,17.0,11.145,11.136,45.80730786]
[1672665891344,17.0,11.145,11.137,67.44]
[1672665891552,17.0,11.145,11.136,30.0]
[1672665892714,46.9072,11.148,11.139,30.0]
[1672665892914,137.755,11.154,11.148,55.58207499]
[1672665893126,30.0,11.167,11.148,55.58207499]
[1672665893458,30.0,11.16,11.148,55.58207499]
[1672665893651,87.3,11.159,11.148,55.58207499]
[1672665893862,30.0,11.158,11.148,55.58207499]
[1672665894066,30.0,11.156,11.148,55.58207499]
[1672665894285,67.33,11.155,11.148,55.58207499]
[1672665894494,114.6246,11.158,11.148,55.58207499]
[1672665894822,114.6246,11.158,11.15,30.0]
[1672665895010,114.6246,11.158,11.149,67.36]
[1672665895743,114.6246,11.158,11.148,55.58207499]
[1672665896702,67.32,11.157,11.148,55.58207499]
[1672665896905,17.0,11.156,11.148,55.58207499]
[1672665898499,47.0,11.156,11.148,55.58207499]
[1672665898708,17.0,11.156,11.148,55.58207499]
[1672665898911,17.0,11.156,11.149,97.36]
[1672665899238,114.6246,11.158,11.149,97.36]
[1672665901962,17.0,11.157,11.149,97.36]
[1672665902372,114.6246,11.158,11.151,30.0]
[1672665902580,49.5276,11.162,11.151,30.0]
[1672665902788,20.0,11.161,11.151,113.15730786]
[1672665903223,20.0,11.161,11.151,97.35]
[1672665903537,139.1908,11.162,11.151,97.35]
[1672665903753,119.1908,11.162,11.151,113.15730786]
[1672665903968,119.1908,11.162,11.151,83.15730786]
[1672665903969,20.0,11.161,11.151,83.15730786]
[1672665904154,67.3,11.16,11.151,67.35]
[1672665904364,20.0,11.161,11.152,17.0]
[1672665904574,20.0,11.161,11.151,15.80730786]
[1672665904803,87.29,11.161,11.15,67.36]
[1672665904999,87.29,11.161,11.152,30.0]
[1672665905206,67.29,11.161,11.152,30.0]
[1672665905422,17.0,11.16,11.152,97.35]
[1672665905631,67.29,11.161,11.152,97.35]
[1672665905851,67.29,11.161,11.152,67.35]
[1672665906067,119.1908,11.162,11.15,67.36]
[1672665906068,20.0,11.16,11.15,67.36]
[1672665906260,50.0,11.16,11.149,67.36]
[1672665906686,50.0,11.16,11.148,55.58207499]
[1672665906895,67.3,11.159,11.148,55.58207499]
[1672665907109,30.0,11.158,11.148,55.58207499]
[1672665907320,67.32,11.157,11.148,55.58207499]
[1672665907522,30.0,11.156,11.148,55.58207499]
[1672665907736,30.0,11.154,11.148,55.58207499]
[1672665907939,67.34,11.153,11.148,55.58207499]
[1672665908486,30.0,11.154,11.148,55.58207499]
[1672665908685,67.34,11.153,11.148,55.58207499]
[1672665909009,30.0,11.154,11.148,55.58207499]
[1672665909632,67.34,11.153,11.148,55.58207499]
[1672665910456,139.2108,11.156,11.148,55.58207499]
[1672665910457,109.2108,11.156,11.148,55.58207499]
[1672665911217,30.0,11.155,11.148,55.58207499]
[1672665911954,17.0,11.154,11.148,55.58207499]
[1672665912568,176.5308,11.156,11.148,55.58207499]
[1672665912781,47.0,11.155,11.148,55.58207499]
[1672665915320,30.0,11.153,11.148,55.58207499]
[1672665917002,97.33,11.155,11.148,55.58207499]
[1672665917314,176.5308,11.156,11.148,55.58207499]
[1672665917527,109.2108,11.156,11.148,55.58207499]
[1672665918678,30.0,11.155,11.148,55.58207499]
[1672665919290,109.2108,11.156,11.148,55.58207499]
[1672665919503,67.29,11.161,11.149,103.16730786]
[1672665919714,30.0,11.165,11.15,30.0]
[1672665919925,30.0,11.163,11.152,30.0]
[1672665920135,67.29,11.162,11.152,30.0]
[1672665920672,67.29,11.162,11.151,137.1077]
[1672665920886,30.0,11.161,11.151,137.1077]
[1672665922767,67.29,11.162,11.151,137.1077]
[1672665922977,30.0,11.164,11.151,152.91500786]
[1672665923313,30.0,11.162,11.151,137.1077]
[1672665924239,17.0,11.161,11.151,137.1077]
[1672665926355,30.0,11.162,11.151,137.1077]
[1672665927407,30.0,11.162,11.151,152.91500786]
[1672665927599,30.0,11.162,11.151,137.1077]
[1672665927813,17.0,11.161,11.151,137.1077]
[1672665928019,30.0,11.162,11.151,137.1077]
[1672665928228,30.0,11.162,11.152,32.80730786]
[1672665928454,30.0,11.162,11.153,67.34]
[1672665928667,30.0,11.162,11.153,83.14730786]
[1672665929818,30.0,11.162,11.153,67.34]
[1672665933901,30.0,11.162,11.152,116.0513]
[1672665935286,67.28,11.163,11.152,116.0513]
[1672665935494,67.28,11.163,11.152,131.85860786]
[1672665935495,30.0,11.163,11.152,131.85860786]
[1672665935709,30.0,11.163,11.152,116.0513]
[1672665936432,30.0,11.163,11.152,48.7013]
[1672665936433,30.0,11.161,11.152,48.7013]
[1672665936850,30.0,11.161,11.153,67.34]
[1672665938325,97.28,11.163,11.153,67.34]
[1672665938533,97.28,11.163,11.153,115.4664]